[Event "WJCC U20 Open 2019"]
[Site "New Delhi"]
[Date "2019.10.16"]
[Round "2.41"]
[White "Maltezeanu, Stefan"]
[Black "Parkhov, Yair"]
[Result "0-1"]
[ECO "B06"]
[WhiteElo "2102"]
[BlackElo "2350"]
[Annotator "NA"]
[PlyCount "42"]
[EventDate "2019.10.15"]
[EventType "swiss"]
[EventCountry "IND"]
[SourceTitle "playchess.com"]
[Source "ChessBase"]
[SourceQuality "1"]
[TimeControl "40/5400+30:1800+30"]

1. e4 {[%emt 0:00:00]} g6 {[%emt 0:00:00]} 2. d4 {[%emt 0:00:00]} Bg7 {[%emt 0:00:00]} 3. Be3 {[%emt 0:00:00]} d6 {[%emt 0:01:49]} 4. Nf3 {[%emt 0:00:00]} a6 {[%emt 0:02:40]} 5. Qd2 {[%emt 0:00:27]} Nd7 {[%emt 0:05:33]} 6. Nc3 {[%emt 0:00:16]} b5 {[%emt 0:00:41]} 7. a4 {[%emt 0:03:43]} b4 {[%emt 0:07:04]} 8. Nd5 {[%emt 0:05:03]} a5 $11 {[%emt 0:12:01]} 9. O-O-O {[%emt 0:11:20]} e6 {[%emt 0:12:24]} 10. Nf4 {[%emt 0:05:20]} Nb6 {[%emt 0:06:32]} 11. b3 {[%emt 0:04:05]} Nf6 {[%emt 0:06:44]} 12. Bd3 {[%emt 0:05:05]} Bb7 {[%emt 0:03:39]} 13. d5 {[%emt 0:09:47]} exd5 {[%emt 0:20:39]} 14. Bxb6 {[%emt 0:06:07]} O-O {[%emt 0:00:40]} 15. e5 {[%emt 0:22:34]} cxb6 {[%emt 0:01:30]} 16. exf6 {[%emt 0:03:10]} Qxf6 {[%emt 0:00:08]} 17. c4 {[%emt 0:03:18]} Qa1+ {[%emt 0:03:30]} 18. Bb1 {[%emt 0:00:05]} Qa3+ {[%emt 0:00:18]} 19. Kc2 {[%emt 0:00:08]} dxc4 {[%emt 0:00:08]} 20. Qc1 {[%emt 0:04:16]} Qxb3+ {[%emt 0:01:56]} 21. Kd2 {[%emt 0:00:07]} Rfe8 {[%emt 0:01:03]} 0-1

[Event "WJCC U20 Open 2019"]
[Site "New Delhi"]
[Date "2019.10.16"]
[Round "2.43"]
[White "Licheli, Luka"]
[Black "Miciano, John Marvin"]
[Result "1-0"]
[ECO "B10"]
[WhiteElo "2010"]
[BlackElo "2345"]
[Annotator "NA"]
[PlyCount "103"]
[EventDate "2019.10.15"]
[EventType "swiss"]
[EventCountry "IND"]
[SourceTitle "playchess.com"]
[Source "ChessBase"]
[SourceQuality "1"]
[TimeControl "40/5400+30:1800+30"]

1. e4 {[%emt 0:00:00]} c6 {[%emt 0:00:00]} 2. d3 {[%emt 0:01:16]} d5 {[%emt 0:00:55]} 3. Nd2 {[%emt 0:01:19]} e5 {[%emt 0:01:40]} 4. Ngf3 {[%emt 0:00:11]} Bd6 {[%emt 0:02:09]} 5. Qe2 {[%emt 0:00:34]} Qe7 {[%emt 0:03:37]} 6. d4 {[%emt 0:02:24] B10: Caro-Kann: 2 d3 and 2 c4} exd4 {[%emt 0:00:19]} 7. exd5 {[%emt 0:00:06]} cxd5 {[%emt 0:02:17]} 8. Nxd4 {[%emt 0:04:53]} Nc6 {[%emt 0:00:25]} 9. Qxe7+ {[%emt 0:11:37]} Ngxe7 {[%emt 0:00:13]} 10. N2b3 {[%emt 0:00:05]} (10. N2f3 Nxd4 11. Nxd4 Nf5 12. Bb5+ Ke7 13. Ne2 Rd8 14. Bg5+ {½-½ (31) Tiviakov,S (2655)-Timman,J (2566) Wijk aan Zee 2013}) 10... O-O {[%emt 0:00:43]} 11. Be3 {[%emt 0:04:43]} Bg4 {[%emt 0:11:11]} 12. h3 {[%emt 0:34:06]} Bh5 {[%emt 0:00:09]} 13. Nb5 $146 {[%emt 0:05:53]} ({Predecessor:} 13. Nxc6 Nxc6 {1-0 (47) Gavrilov,A (2438)-Kharitonov,A (2345) St Petersburg 2001}) 13... Be5 {[%emt 0:01:52]} 14. f4 {[%emt 0:11:07]} Nf5 {[%emt 0:09:22]} 15. Kf2 {[%emt 0:05:52]} Nxe3 {[%emt 0:03:45]} 16. Kxe3 {[%emt 0:00:04]} d4+ {[%emt 0:01:28]} 17. Kf2 {[%emt 0:09:33]} Bxf4 {[%emt 0:00:13]} 18. N5xd4 {[%emt 0:00:13]} Nxd4 {[%emt 0:09:34]} 19. Nxd4 {[%emt 0:00:02]} Rad8 {[%emt 0:05:09]} 20. Nf3 {[%emt 0:03:30]} Bg6 {[%emt 0:01:19]} 21. c3 {[%emt 0:00:39]} Rfe8 {[%emt 0:04:05]} 22. Bb5 {[%emt 0:00:48]} Re6 {[%emt 0:06:58]} 23. Rad1 {[%emt 0:00:51]} Red6 {[%emt 0:00:20]} 24. Rxd6 {[%emt 0:00:49]} Bxd6 {[%emt 0:00:07]} 25. Re1 {[%emt 0:01:09]} Kf8 {[%emt 0:01:44]} 26. Nd4 {[%emt 0:00:39]} a6 {[%emt 0:02:57]} 27. Ba4 {[%emt 0:00:33]} Bc7 {[%emt 0:04:00]} 28. Bd1 {[%emt 0:00:27]} b5 {[%emt 0:01:48]} 29. a3 {[%emt 0:00:25]} Bb6 {[%emt 0:00:58]} 30. Ke3 {[%emt 0:00:01]} Be4 {[%emt 0:02:46]} 31. Re2 {[%emt 0:01:06]} Bd5 {[%emt 0:00:54]} 32. Rd2 {[%emt 0:00:11]} g6 {[%emt 0:02:29]} 33. Bf3 {[%emt 0:00:28]} f5 {[%emt 0:00:46]} 34. Kf4 {[%emt 0:00:51]} Kf7 {[%emt 0:01:18]} 35. Bxd5+ {[%emt 0:00:31]} Rxd5 {[%emt 0:00:08]} 36. Nf3 {[%emt 0:00:19]} Rxd2 37. Nxd2 Kf6 {[%emt 0:01:05]} 38. b4 {[%emt 0:01:10]} g5+ {[%emt 0:00:15]} 39. Kf3 {[%emt 0:00:04]} Ke5 {[%emt 0:00:24]} 40. a4 {[%emt 0:00:48]} bxa4 {[%emt 0:00:58]} 41. Nc4+ {[%emt 0:30:05]} Ke6 {[%emt 0:30:10]} 42. Ke2 {[%emt 0:00:00]} Bc7 {[%emt 0:00:00]} 43. Kd3 {[%emt 0:00:00]} h5 {[%emt 0:00:00]} 44. Kc2 {[%emt 0:00:00]} Kd5 {[%emt 0:00:00]} 45. Kd3 {[%emt 0:00:00]} f4 {[%emt 0:00:00]} 46. Nd2 {[%emt 0:00:00]} g4 $19 {[%emt 0:00:00]} 47. hxg4 {[%emt 0:00:00]} hxg4 {[%emt 0:00:00]} 48. c4+ {[%emt 0:02:23]} Kc6 {[%emt 0:00:00]} 49. Kd4 {[%emt 0:02:07]} f3 {[%emt 0:00:00]} 50. gxf3 {[%emt 0:00:24]} g3 {[%emt 0:00:00]} 51. Ke3 {[%emt 0:00:39]} Bf4+ {[%emt 0:00:00]} 52. Kd4 1-0

[Event "WJCC U20 Open 2019"]
[Site "New Delhi"]
[Date "2019.10.17"]
[Round "3.8"]
[White "Harsha Bharathakoti"]
[Black "Davtyan, Artur"]
[Result "1/2-1/2"]
[ECO "E04"]
[WhiteElo "2530"]
[BlackElo "2418"]
[Annotator "ChessBase"]
[PlyCount "83"]
[EventDate "2019.10.15"]
[EventType "swiss"]
[EventCountry "IND"]
[SourceTitle "playchess.com"]
[Source "ChessBase"]
[SourceQuality "1"]
[TimeControl "40/5400+30:1800+30"]

1. d4 {[%emt 0:00:09]} d5 {[%emt 0:06:12]} 2. c4 {[%emt 0:00:17]} e6 {[%emt 0:01:11]} 3. Nf3 {[%emt 0:00:46]} Nf6 {[%emt 0:00:07]} 4. g3 {[%emt 0:00:47]} dxc4 {[%emt 0:00:05]} 5. Bg2 {[%emt 0:00:54]} Nc6 {[%emt 0:00:05]} 6. Qa4 {[%emt 0:04:03]} Bb4+ {[%emt 0:00:16]} 7. Bd2 {[%emt 0:00:07]} Nd5 {[%emt 0:00:04]} 8. Bxb4 {[%emt 0:00:20]} Ndxb4 {[%emt 0:00:05]} 9. Nc3 {[%emt 0:00:09]} Bd7 {[%emt 0:00:15]} 10. O-O {[%emt 0:00:38]} a5 {[%emt 0:00:21]} 11. Qd1 {[%emt 0:00:46]} O-O {[%emt 0:01:16]} 12. e3 {[%emt 0:00:48]} a4 {[%emt 0:02:04]} 13. Nxa4 {[%emt 0:04:29]} Nxd4 {[%emt 0:00:17]} 14. Qxd4 {[%emt 0:00:47]} Bxa4 {[%emt 0:00:45]} 15. Qxc4 {[%emt 0:00:11]} Qe7 {[%emt 0:00:12]} 16. Rfc1 {[%emt 0:08:24]} Rfc8 {[%emt 0:02:44]} 17. a3 {[%emt 0:01:28]} Nd5 {[%emt 0:00:35]} 18. Nd4 {[%emt 0:00:05]} Nb6 {[%emt 0:24:31]} 19. Qb4 {[%emt 0:32:11]} Qxb4 {[%emt 0:05:01]} 20. axb4 {[%emt 0:00:24]} Rab8 {[%emt 0:05:09]} 21. b5 {[%emt 0:03:36]} c5 {[%emt 0:27:15]} 22. bxc6 {[%emt 0:00:07]} Bxc6 {[%emt 0:00:32]} 23. Nxc6 {[%emt 0:15:52]} bxc6 {[%emt 0:00:06]} 24. Bxc6 {[%emt 0:00:07]} Kf8 {[%emt 0:00:00]} 25. Bg2 {[%emt 0:00:53]} Kg8 26. Bc6 {[%emt 0:00:07]} Kf8 {[%emt 0:02:01]} 27. b4 {[%emt 0:07:51]} Rc7 {[%emt 0:00:30]} 28. b5 {[%emt 0:00:30]} Nc8 29. Rd1 {[%emt 0:04:46]} Ke7 {[%emt 0:06:49]} 30. Ra8 {[%emt 0:03:29]} Rb6 {[%emt 0:08:28]} 31. Rda1 {[%emt 0:01:24]} Kf6 {[%emt 0:01:00]} 32. R1a6 {[%emt 0:01:06]} Rxa6 {[%emt 0:00:13]} 33. Rxa6 {[%emt 0:00:05]} Na7 {[%emt 0:00:13]} 34. Be8 {[%emt 0:01:13]} Rb7 {[%emt 0:00:05]} 35. Bc6 {[%emt 0:04:35]} Nxc6 {[%emt 0:03:08]} 36. bxc6 {[%emt 0:00:04]} Rc7 {[%emt 0:00:02]} 37. f4 {[%emt 0:02:06]} Ke7 {[%emt 0:03:41]} 38. e4 {[%emt 0:00:26]} e5 {[%emt 0:00:40]} 39. Kg2 {[%emt 0:02:14]} exf4 {[%emt 0:01:40]} 40. gxf4 {[%emt 0:00:02]} Kd6 {[%emt 0:00:59]} 41. e5+ {[%emt 0:30:18]} Kd5 {[%emt 0:30:12]} 42. Kf3 {[%emt 0:01:40] Kxe5 Ke4+} 1/2-1/2

[Event "WJCC U20 Open 2019"]
[Site "New Delhi"]
[Date "2019.10.17"]
[Round "3.10"]
[White "Lobanov, Sergei"]
[Black "Anuj Shrivatri"]
[Result "1/2-1/2"]
[ECO "B48"]
[WhiteElo "2516"]
[BlackElo "2390"]
[Annotator "ChessBase"]
[PlyCount "58"]
[EventDate "2019.10.15"]
[EventType "swiss"]
[EventCountry "IND"]
[SourceTitle "playchess.com"]
[Source "ChessBase"]
[SourceQuality "1"]
[TimeControl "40/5400+30:1800+30"]

1. e4 {[%emt 0:00:00]} c5 {[%emt 0:00:00]} 2. Nf3 {[%emt 0:00:00]} e6 {[%emt 0:00:00]} 3. d4 {[%emt 0:00:01]} cxd4 {[%emt 0:00:05]} 4. Nxd4 {[%emt 0:00:03]} Nc6 {[%emt 0:00:12]} 5. Nc3 {[%emt 0:00:08]} Qc7 {[%emt 0:00:08]} 6. Be3 {[%emt 0:01:01]} a6 {[%emt 0:00:15]} 7. Qd2 {[%emt 0:00:49]} Nf6 {[%emt 0:00:23]} 8. O-O-O {[%emt 0:00:59]} Bb4 {[%emt 0:00:21]} 9. f3 {[%emt 0:00:05]} Ne5 {[%emt 0:00:13]} 10. a3 {[%emt 0:04:50]} Bxc3 {[%emt 0:00:31]} 11. Qxc3 {[%emt 0:00:07]} Qxc3 {[%emt 0:00:13]} 12. bxc3 {[%emt 0:00:05]} d5 {[%emt 0:00:29]} 13. exd5 {[%emt 0:02:05]} Nxd5 {[%emt 0:00:30]} 14. Bd2 {[%emt 0:00:00]} b5 {[%emt 0:02:28]} 15. f4 {[%emt 0:03:17]} Nc4 {[%emt 0:07:25]} 16. Bxc4 {[%emt 0:00:05]} bxc4 {[%emt 0:00:09]} 17. Rhe1 {[%emt 0:00:02]} O-O {[%emt 0:04:31]} 18. g4 {[%emt 0:04:50]} Bd7 {[%emt 0:16:52]} 19. f5 {[%emt 0:00:16]} Rfe8 {[%emt 0:13:26]} 20. fxe6 {[%emt 0:00:13]} Bxe6 {[%emt 0:00:39]} 21. Re5 {[%emt 0:06:58]} Bxg4 {[%emt 0:11:20]} 22. Rxd5 {[%emt 0:00:07]} Bxd1 {[%emt 0:00:13]} 23. Kxd1 {[%emt 0:00:01]} Re4 {[%emt 0:02:27]} 24. Be1 {[%emt 0:04:33]} g6 {[%emt 0:08:37]} 25. Rc5 {[%emt 0:05:10]} Rb8 {[%emt 0:10:24]} 26. Bg3 {[%emt 0:04:36]} Rb1+ {[%emt 0:00:55]} 27. Kd2 {[%emt 0:00:01]} h5 {[%emt 0:03:24]} 28. Be5 {[%emt 0:09:54]} f6 {[%emt 0:02:45]} 29. Bxf6 {[%emt 0:06:20]} Rf1 {[%emt 0:05:34]} 1/2-1/2

[Event "WJCC U20 Open 2019"]
[Site "New Delhi"]
[Date "2019.10.17"]
[Round "3.13"]
[White "Sankalp Gupta"]
[Black "Janik, Igor"]
[Result "1/2-1/2"]
[ECO "A47"]
[WhiteElo "2369"]
[BlackElo "2467"]
[Annotator "ChessBase"]
[PlyCount "82"]
[EventDate "2019.10.15"]
[EventType "swiss"]
[EventCountry "IND"]
[SourceTitle "playchess.com"]
[Source "ChessBase"]
[SourceQuality "1"]
[TimeControl "40/5400+30:1800+30"]

1. d4 {[%emt 0:04:38]} Nf6 {[%emt 0:00:00]} 2. Nf3 {[%emt 0:00:03]} b6 {[%emt 0:00:00]} 3. Bf4 {[%emt 0:00:59]} Bb7 {[%emt 0:00:00]} 4. e3 {[%emt 0:00:07]} Nh5 {[%emt 0:00:11]} 5. Bg5 {[%emt 0:01:13]} h6 {[%emt 0:01:26]} 6. Bh4 {[%emt 0:00:03]} g5 {[%emt 0:00:42]} 7. Bg3 {[%emt 0:00:48]} d6 {[%emt 0:00:47]} 8. Nbd2 {[%emt 0:00:44]} Bg7 {[%emt 0:00:58]} 9. c3 {[%emt 0:00:14]} Nd7 {[%emt 0:00:34]} 10. Bd3 {[%emt 0:01:18]} e6 {[%emt 0:03:27]} 11. e4 {[%emt 0:03:20]} O-O {[%emt 0:02:46]} 12. Ng1 {[%emt 0:03:29]} Ndf6 {[%emt 0:07:16]} 13. Ne2 {[%emt 0:03:44]} e5 {[%emt 0:03:07]} 14. dxe5 {[%emt 0:10:42]} dxe5 {[%emt 0:01:30]} 15. Qc2 {[%emt 0:00:03]} Qe7 {[%emt 0:10:57]} 16. f3 {[%emt 0:02:26]} c5 {[%emt 0:01:44]} 17. Nf1 {[%emt 0:07:25]} Nf4 {[%emt 0:04:12]} 18. Ne3 {[%emt 0:02:02]} c4 {[%emt 0:01:36]} 19. Bxc4 {[%emt 0:04:51]} Qc5 {[%emt 0:00:20]} 20. Bf2 {[%emt 0:05:54]} Nxg2+ {[%emt 0:00:31]} 21. Nxg2 {[%emt 0:00:06]} Qxc4 {[%emt 0:00:13]} 22. Ne3 {[%emt 0:03:45]} Qe6 {[%emt 0:00:17]} 23. h3 {[%emt 0:03:04]} Rfd8 {[%emt 0:10:29]} 24. Ng3 {[%emt 0:00:43]} Ba6 {[%emt 0:02:00]} 25. Qa4 {[%emt 0:08:09]} b5 {[%emt 0:05:59]} 26. Qb3 {[%emt 0:00:34]} Qc6 {[%emt 0:00:06]} 27. O-O {[%emt 0:02:05]} Bc8 {[%emt 0:04:20]} 28. Ngf5 {[%emt 0:04:47]} Bf8 {[%emt 0:00:13]} 29. Qc2 {[%emt 0:06:13]} Nh5 {[%emt 0:02:01]} 30. Rad1 {[%emt 0:01:04]} Re8 {[%emt 0:05:10]} 31. Kh2 {[%emt 0:00:35]} Bc5 {[%emt 0:02:31]} 32. Bg3 {[%emt 0:13:04]} Bxe3 {[%emt 0:05:36]} 33. Nxe3 {[%emt 0:00:19]} f6 {[%emt 0:01:56]} 34. Rd3 {[%emt 0:01:45]} Be6 {[%emt 0:02:05]} 35. Rfd1 {[%emt 0:00:40]} Kf7 36. Rd6 {[%emt 0:01:48]} Qc7 {[%emt 0:05:22]} 37. Ng4 {[%emt 0:01:24]} Nxg3 {[%emt 0:02:09]} 38. Kxg3 {[%emt 0:00:37]} h5 {[%emt 0:00:18]} 39. Ne3 {[%emt 0:02:06]} Rad8 {[%emt 0:00:39]} 40. Qd3 {[%emt 0:00:54]} h4+ {[%emt 0:05:30]} 41. Kg2 {[%emt 0:30:40]} Rxd6 {[%emt 0:39:12]} 1/2-1/2

[Event "WJCC U20 Open 2019"]
[Site "New Delhi"]
[Date "2019.10.17"]
[Round "3.15"]
[White "Batsuren, Dambasuren"]
[Black "Winkelman, Albert"]
[Result "1-0"]
[ECO "E35"]
[WhiteElo "2454"]
[BlackElo "2143"]
[Annotator "ChessBase"]
[PlyCount "62"]
[EventDate "2019.10.15"]
[EventType "swiss"]
[EventCountry "IND"]
[SourceTitle "playchess.com"]
[Source "ChessBase"]
[SourceQuality "1"]
[TimeControl "40/5400+30:1800+30"]

1. d4 {[%emt 0:00:00]} Nf6 {[%emt 0:00:00]} 2. c4 {[%emt 0:00:00]} e6 {[%emt 0:00:00]} 3. Nc3 {[%emt 0:00:00]} Bb4 {[%emt 0:00:03]} 4. Qc2 {[%emt 0:00:06]} d5 {[%emt 0:00:19]} 5. cxd5 {[%emt 0:00:12]} exd5 {[%emt 0:00:10]} 6. Bg5 {[%emt 0:00:07]} h6 {[%emt 0:00:34]} 7. Bh4 {[%emt 0:00:08]} c5 {[%emt 0:01:32]} 8. dxc5 {[%emt 0:00:15]} g5 {[%emt 0:01:14]} 9. Bg3 {[%emt 0:00:06]} Ne4 {[%emt 0:00:29]} 10. e3 {[%emt 0:00:31]} Qa5 {[%emt 0:04:29]} 11. Rc1 {[%emt 0:03:41]} Bxc3+ {[%emt 0:16:44]} 12. bxc3 {[%emt 0:00:08]} Nd7 {[%emt 0:01:55]} 13. Nf3 {[%emt 0:05:53]} Ndxc5 {[%emt 0:02:29]} 14. Nd4 {[%emt 0:00:44]} Bd7 {[%emt 0:01:32]} 15. Be2 {[%emt 0:03:32]} Na4 {[%emt 0:23:49]} 16. O-O {[%emt 0:10:55]} Naxc3 {[%emt 0:13:45]} 17. Be5 {[%emt 0:05:51]} Nxe2+ {[%emt 0:04:38]} 18. Qxe2 {[%emt 0:00:37]} O-O {[%emt 0:02:45]} 19. Rc7 {[%emt 0:01:39]} Rae8 {[%emt 0:03:24]} 20. Rxd7 {[%emt 0:01:56]} Rxe5 {[%emt 0:00:13]} 21. Rxb7 {[%emt 0:01:03]} Qc3 {[%emt 0:14:04]} 22. Rd1 {[%emt 0:06:54]} Qc8 {[%emt 0:03:39]} 23. Qb2 {[%emt 0:00:23]} Nd6 {[%emt 0:00:26]} 24. Rxa7 {[%emt 0:03:12]} Nc4 {[%emt 0:00:44]} 25. Qb3 {[%emt 0:04:13]} Qg4 {[%emt 0:01:39]} 26. h3 {[%emt 0:01:07]} Qh5 {[%emt 0:00:08]} 27. Nc6 {[%emt 0:01:01]} Re6 {[%emt 0:01:42]} 28. Ne7+ {[%emt 0:00:13]} Kh8 {[%emt 0:00:35]} 29. Nxd5 Ne5 {[%emt 0:00:30]} 30. Qc3 g4 {[%emt 0:00:30]} 31. hxg4 Qxg4 {[%emt 0:00:30]} 1-0

[Event "WJCC U20 Open 2019"]
[Site "New Delhi"]
[Date "2019.10.17"]
[Round "3.18"]
[White "Pogosyan, Stefan"]
[Black "Gazik, Viktor"]
[Result "1/2-1/2"]
[ECO "A40"]
[WhiteElo "2364"]
[BlackElo "2546"]
[Annotator "RC"]
[PlyCount "198"]
[EventDate "2019.10.15"]
[EventType "swiss"]
[EventCountry "IND"]
[SourceTitle "playchess.com"]
[Source "ChessBase"]
[SourceQuality "1"]
[TimeControl "40/5400+30:1800+30"]

1. d4 {[%emt 0:00:00]} Nc6 {[%emt 0:04:04]} 2. Nf3 {[%emt 0:00:02]} d6 {[%emt 0:00:26]} 3. e4 {[%emt 0:01:48]} g6 {[%emt 0:00:38]} 4. Nc3 {[%emt 0:01:08]} Bg7 {[%emt 0:00:06]} 5. h3 {[%emt 0:00:07]} Nf6 {[%emt 0:04:04]} 6. Be2 {[%emt 0:01:45]} O-O {[%emt 0:00:56]} 7. O-O {[%emt 0:00:22]} a6 {[%emt 0:00:52]} 8. a4 {[%emt 0:01:16]} b6 {[%emt 0:00:05]} 9. d5 {[%emt 0:02:46]} Nb4 {[%emt 0:02:35]} 10. Bc4 {[%emt 0:06:32]} Bb7 {[%emt 0:04:50]} 11. Be3 {[%emt 0:01:42]} c6 {[%emt 0:09:03]} 12. Qd2 {[%emt 0:13:30]} Rc8 {[%emt 0:09:45]} 13. Bb3 {[%emt 0:00:51]} cxd5 {[%emt 0:05:06]} 14. exd5 {[%emt 0:02:26]} Rxc3 {[%emt 0:03:07]} 15. Qxc3 {[%emt 0:01:39]} Nfxd5 {[%emt 0:01:11]} 16. Qd2 {[%emt 0:01:49]} Bxb2 {[%emt 0:08:58]} 17. Bxd5 {[%emt 0:02:06]} Nxd5 {[%emt 0:00:51]} 18. Rab1 {[%emt 0:00:23]} Ba3 {[%emt 0:17:46]} 19. Bh6 {[%emt 0:01:41]} Re8 {[%emt 0:00:12]} 20. a5 {[%emt 0:02:26]} Bc5 {[%emt 0:05:11]} 21. c4 {[%emt 0:04:28]} Nf6 {[%emt 0:00:01]} 22. axb6 {[%emt 0:00:18]} Bxf3 {[%emt 0:10:49]} 23. b7 {[%emt 0:01:04]} Qc7 {[%emt 0:03:28]} 24. gxf3 {[%emt 0:00:51]} Rb8 {[%emt 0:00:01]} 25. Rb2 {[%emt 0:07:00]} Nd7 {[%emt 0:05:39]} 26. Ra1 {[%emt 0:16:04]} Ne5 {[%emt 0:00:30]} 27. Rb3 {[%emt 0:00:30]} Rxb7 {[%emt 0:01:13]} 28. Qb2 {[%emt 0:10:01]} Rxb3 {[%emt 0:00:02]} 29. Qxb3 {[%emt 0:00:06]} f6 {[%emt 0:01:35]} 30. Bf4 {[%emt 0:03:00]} a5 {[%emt 0:01:09]} 31. Bxe5 {[%emt 0:01:50]} fxe5 {[%emt 0:00:01]} 32. Qb5 {[%emt 0:01:47]} Bb4 {[%emt 0:00:01]} 33. Kg2 {[%emt 0:01:15]} Kg7 {[%emt 0:01:39]} 34. Ra2 {[%emt 0:01:30]} Qc8 {[%emt 0:00:17]} 35. Re2 {[%emt 0:00:33]} Qf5 {[%emt 0:00:02]} 36. h4 {[%emt 0:01:10]} h5 {[%emt 0:01:00]} 37. Re4 {[%emt 0:02:03]} Kf7 {[%emt 0:00:09]} 38. Qd5+ {[%emt 0:01:23]} Qe6 {[%emt 0:00:47]} 39. f4 {[%emt 0:03:00]} Qxd5 {[%emt 0:00:32]} 40. cxd5 {[%emt 0:00:07]} exf4 {[%emt 0:00:47]} 41. Rxf4+ {[%emt 0:31:44]} Ke8 {[%emt 0:08:18]} 42. Re4 {[%emt 0:00:00]} Bc5 {[%emt 0:01:18]} 43. f4 {[%emt 0:00:00]} Kf7 {[%emt 0:01:47]} 44. Kf3 {[%emt 0:00:00]} Bb4 {[%emt 0:00:06]} 45. Re6 {[%emt 0:00:00]} Bc3 {[%emt 0:03:34]} 46. Re3 {[%emt 0:00:00]} Bd4 {[%emt 0:00:35]} 47. Re4 {[%emt 0:00:00]} Bc5 {[%emt 0:00:45]} 48. Kg3 {[%emt 0:00:00]} Ke8 {[%emt 0:03:03]} 49. Kf3 {[%emt 0:00:00]} Kd7 {[%emt 0:01:28]} 50. Ke2 {[%emt 0:00:00]} Ke8 {[%emt 0:06:39]} 51. Kf3 {[%emt 0:00:00]} Kd8 {[%emt 0:00:05]} 52. Ke2 {[%emt 0:00:00]} Kd7 {[%emt 0:00:02]} 53. Re6 {[%emt 0:03:16]} a4 {[%emt 0:02:39]} 54. Kd3 {[%emt 0:00:17]} Bf2 {[%emt 0:01:56]} 55. Rxg6 {[%emt 0:01:58]} Bxh4 {[%emt 0:00:15]} 56. Rg2 {[%emt 0:00:55]} e6 {[%emt 0:04:27]} 57. Ke4 {[%emt 0:01:07]} Ke7 {[%emt 0:01:19]} 58. dxe6 {[%emt 0:02:31]} Kxe6 {[%emt 0:00:02]} 59. Ra2 {[%emt 0:01:55]} d5+ {[%emt 0:00:34]} 60. Kf3 {[%emt 0:00:05]} Bf6 {[%emt 0:00:41]} 61. Rxa4 {[%emt 0:00:14]} Kf5 {[%emt 0:00:56]} 62. Ra6 {[%emt 0:01:34]} Be7 {[%emt 0:00:18]} 63. Rh6 {[%emt 0:00:53]} h4 {[%emt 0:00:02]} 64. Rh5+ {[%emt 0:00:14]} Ke6 {[%emt 0:00:02]} 65. Kg4 {[%emt 0:00:02]} Bf6 {[%emt 0:01:01]} 66. Kf3 {[%emt 0:00:10]} Kd6 {[%emt 0:00:40]} 67. Rh6 {[%emt 0:00:44]} Ke6 {[%emt 0:00:11]} 68. Kg4 {[%emt 0:00:21]} d4 {[%emt 0:00:17]} 69. Kf3 {[%emt 0:00:15]} Kf5 {[%emt 0:01:16]} 70. Rh5+ {[%emt 0:00:39]} Kg6 {[%emt 0:00:01]} 71. Rb5 {[%emt 0:00:20]} Kf7 {[%emt 0:00:39]} 72. Ke4 {[%emt 0:00:13]} Kg6 {[%emt 0:00:12]} 73. Rb6 {[%emt 0:00:27]} Kg7 {[%emt 0:01:17]} 74. Kf5 {[%emt 0:00:25]} Be7 {[%emt 0:00:36]} 75. Rb7 {[%emt 0:01:07]} Kf7 {[%emt 0:00:27]} 76. Ke5 {[%emt 0:01:39]} h3 {[%emt 0:00:29]} 77. Rb3 {[%emt 0:00:23]} h2 {[%emt 0:00:25]} 78. Rh3 {[%emt 0:00:11]} d3 {[%emt 0:00:08]} 79. Rh7+ {[%emt 0:00:29]} Kg6 {[%emt 0:00:58]} 80. Rxh2 {[%emt 0:00:51]} Bb4 {[%emt 0:00:01]} 81. Rh3 {[%emt 0:00:54]} d2 {[%emt 0:00:41]} 82. Rd3 {[%emt 0:00:06]} Bc3+ {[%emt 0:00:33]} 83. Ke6 {[%emt 0:00:43]} Kh5 {[%emt 0:00:07]} 84. Kf5 {[%emt 0:01:53]} Kh4 {[%emt 0:00:01]} 85. Ke4 {[%emt 0:00:34]} Kg4 {[%emt 0:00:02]} 86. Rd5 {[%emt 0:00:59]} Kg3 {[%emt 0:00:59]} 87. Ke3 {[%emt 0:00:23]} Bb4 {[%emt 0:00:41]} 88. Rg5+ {[%emt 0:00:24]} Kh4 {[%emt 0:00:02]} 89. Rd5 {[%emt 0:00:38]} Kg4 {[%emt 0:00:37]} 90. Rd8 {[%emt 0:00:30]} Kf5 {[%emt 0:00:36]} 91. Rd5+ {[%emt 0:00:26]} Kg4 {[%emt 0:00:10]} 92. Rd8 {[%emt 0:00:07]} Kf5 {[%emt 0:00:30]} 93. Kf3 {[%emt 0:00:09]} Ke6 {[%emt 0:00:18]} 94. Rd3 {[%emt 0:00:21]} Kf5 {[%emt 0:00:11]} 95. Rd5+ {[%emt 0:00:08]} Ke6 {[%emt 0:00:06]} 96. Ke4 {[%emt 0:00:03]} Kf6 {[%emt 0:01:27]} 97. f5 {[%emt 0:01:05]} Bc3 {[%emt 0:00:52]} 98. Ke3 {[%emt 0:01:30]} d1=Q {[%emt 0:00:22]} 99. Rxd1 {[%emt 0:00:05]} Kxf5 {[%emt 0:00:30]} 1/2-1/2

[Event "WJCC U20 Open 2019"]
[Site "New Delhi"]
[Date "2019.10.17"]
[Round "3.22"]
[White "Miciano, John Marvin"]
[Black "Muradli, Mahammad"]
[Result "1-0"]
[ECO "A05"]
[WhiteElo "2345"]
[BlackElo "2459"]
[Annotator "ChessBase"]
[PlyCount "59"]
[EventDate "2019.10.15"]
[EventType "swiss"]
[EventCountry "IND"]
[SourceTitle "playchess.com"]
[Source "ChessBase"]
[SourceQuality "1"]
[TimeControl "40/5400+30:1800+30"]

1. Nf3 {[%emt 0:00:00]} Nf6 {[%emt 0:07:26]} 2. g3 {[%emt 0:00:23]} g6 {[%emt 0:00:20]} 3. c4 {[%emt 0:00:17]} Bg7 {[%emt 0:00:13]} 4. Bg2 {[%emt 0:00:08]} c6 {[%emt 0:03:12]} 5. O-O {[%emt 0:02:01]} O-O {[%emt 0:00:41]} 6. b3 {[%emt 0:02:07]} c5 {[%emt 0:12:57]} 7. Bb2 {[%emt 0:00:46]} Nc6 {[%emt 0:05:17]} 8. d4 {[%emt 0:06:40]} d5 {[%emt 0:04:09]} 9. Nbd2 {[%emt 0:07:09]} dxc4 {[%emt 0:15:08]} 10. Nxc4 {[%emt 0:00:21]} Be6 {[%emt 0:01:35]} 11. Rc1 {[%emt 0:07:29]} Bxc4 {[%emt 0:17:21]} 12. Rxc4 {[%emt 0:00:10]} Nd7 {[%emt 0:00:07]} 13. Qa1 {[%emt 0:03:29]} Qb6 {[%emt 0:08:17]} 14. dxc5 {[%emt 0:03:15]} Bxb2 {[%emt 0:00:05]} 15. Qxb2 {[%emt 0:00:11]} Nxc5 {[%emt 0:00:02]} 16. Ng5 {[%emt 0:19:09]} h6 {[%emt 0:10:06]} 17. Rh4 {[%emt 0:05:14]} Rfd8 {[%emt 0:00:15]} 18. Nf3 {[%emt 0:14:17]} h5 {[%emt 0:02:56]} 19. g4 {[%emt 0:02:13]} Rd5 {[%emt 0:03:17]} 20. gxh5 {[%emt 0:01:05]} Rxh5 {[%emt 0:00:19]} 21. Rxh5 {[%emt 0:00:11]} gxh5 {[%emt 0:00:01]} 22. Qc1 {[%emt 0:01:39]} Ne4 {[%emt 0:03:09]} 23. Qf4 {[%emt 0:06:40]} Nf6 {[%emt 0:02:16]} 24. Kh1 {[%emt 0:01:52]} Qb4 {[%emt 0:01:11]} 25. Qg5+ {[%emt 0:00:40]} Kh7 {[%emt 0:01:39]} 26. Bh3 {[%emt 0:00:39]} Rg8 {[%emt 0:00:29]} 27. Bf5+ {[%emt 0:00:13]} Rg6 {[%emt 0:00:00]} 28. Rg1 {[%emt 0:01:03]} Ng4 {[%emt 0:01:01]} 29. Qxh5+ {[%emt 0:00:09]} Kg7 {[%emt 0:00:05]} 30. Rxg4 {[%emt 0:00:08]} 1-0